Cogmind - Beta 13 @@@ ROGUE MODE // 2024.08.05 @ 02:49:48 // Winter2019/RPGLIKE Player: badjay Result: Destroyed by G-34 Mercenary with Small Laser Performance ------------- Evolutions (1) 500 Regions Visited (2) 400 Robots Destroyed (15) 75 Value Destroyed (413) 413 Prototype IDs (3) 60 Alien Tech Used (0) 0 Bonus (2) 2 TOTAL SCORE: 1450 Bonus ------- High Alert Combat Kills 2 Cogmind --------- Core Integrity 0/600 Matter 300/300 Energy 95/100 System Corruption 0% Temperature Cool (6) Movement Hovering (56) Location -9/Materials Parts ------- > --- POWER (1) -------- (None) > --- PROPULSION (2) --- Improved Hover Unit Improved Hover Unit > --- UTILITY (1) ------ Terrain Scanner > --- WEAPON (2) ------- Flail > --- INVENTORY (0) ---- (None) Peak State ------------ > --- POWER ------------ Light Ion Engine > --- PROPULSION ------- Improved Hover Unit Improved Hover Unit > --- UTILITY ---------- Terrain Scanner > --- WEAPON ----------- Flail > --- INVENTORY -------- (None) [Rating: 8] Favorites ----------- Power Light Ion Engine Engine Light Ion Engine Propulsion Improved Hover Unit Hover Unit Improved Hover Unit Flight Unit Flight Unit Utility Terrain Scanner Device Terrain Scanner Weapon Flail Impact Weapon Flail Slashing Weapon Mining Claw Build | -11 -10 -9 ------- Run | Yrd Mat Mat Slots Evolved 2 | . . 2 Power . | . . . Propulsion 1 | . . 1 Utility . | . . . Weapon 1 | . . 1 Parts Attached 8 | . 4 4 Power 2 | . . 2 Engine 2 | . . 2 Core . | . . . Reactor . | . . . Propulsion 3 | . 1 2 Treads . | . . . Leg . | . . . Wheel . | . . . Hover 2 | . . 2 Flight 1 | . 1 . Utility 1 | . 1 . Device 1 | . 1 . Storage . | . . . Processor . | . . . Hackware . | . . . Protection . | . . . Artifact . | . . . Weapon 2 | . 2 . Energy Gun . | . . . Energy Cannon . | . . . Ballistic Gun . | . . . Ballistic Cannon . | . . . Launcher . | . . . Special Weapon . | . . . Impact Weapon 1 | . 1 . Slashing Weapon 1 | . 1 . Piercing Weapon . | . . . Special Melee Weapon . | . . . Unidentified Prototypes . | . . . Parts Lost 1 | . . 1 Power 1 | . . 1 Propulsion . | . . . Utility . | . . . Weapon . | . . . Highest Loss Streak 1 | . . 1 To Critical Strikes . | . . . Average Slot Usage (%) 70 | . 69 71 Engine 4 | . . 9 Hover 11 | . . 23 Flight 13 | . 21 4 Device 20 | . 24 16 Impact Weapon 16 | . 16 16 Slashing Weapon 3 | . 7 . Naked Turns 4 | . 4 . Heaviest Build 6 | . 3 6 Greatest Support 14 | 3 4 14 Greatest Overweight (x) 1 | . . 1 Average Overweight (x) . | . . . Largest Inventory Capacity . | . . . Average Capacity . | . . . Most Carried . | . . . Average Carried . | . . . Final Capacity . | . . . Final Carried . | . . . Class Distribution -------------------- 97% | Hacker-Mutant Dominant Class ---------------- Hacker-Mutant | -10/Materials Hacker-Mutant | -9/Materials Resources | -11 -10 -9 ----------- Run | Yrd Mat Mat Matter Collected 280 | 175 65 40 Remotely . | . . . Salvage Created 352 | . 92 260 Parts 25 | . 9 16 Haulers Intercepted 1 | . 1 . Recyclers Shooed . | . . . Parts Field Recycled . | . . . Retrieved Matter . | . . . Parts Self-Destructed . | . . . Prevented . | . . . Kills | -11 -10 -9 ------- Run | Yrd Mat Mat Combat Hostiles Destroyed 14 | . 5 9 Melee 12 | . 5 7 Classes Destroyed 5 | . 3 2 Hauler 1 | . 1 . Swarmer 5 | . 3 2 Grunt 5 | . 2 3 Brawler 1 | . . 1 Sentry 3 | . . 3 Best Kill Streak 5 | . 2 5 Combat Bots Only 5 | . 2 5 Max Kills in Single Turn 1 | . 1 1 Gunslinging . | . . . Exploded . | . . . Melee 1 | . 1 1 Uniques/NPCs Destroyed . | . . . Combat | -11 -10 -9 -------- Run | Yrd Mat Mat Hostile Shots Fired 145 | . 27 118 Missed 52 | . 6 46 Damage Taken 1045 | . 292 753 Core 903 | . 272 631 Absorbed by Shields . | . . . Redirected to Core 452 | . 59 393 Core Remaining (%) 93 | 100 87 . Volleys Fired . | . . . Largest . | . . . Hottest . | . . . Shots Fired . | . . . Gun . | . . . Cannon . | . . . Launcher . | . . . Special . | . . . Kinetic . | . . . Thermal . | . . . Explosive . | . . . Electromagnetic . | . . . Robot Hit Streak . | . . . Robot Miss Streak . | . . . Penetration Max . | . . . Secondary Targets . | . . . Shots Hit Robots 39 | . 14 25 Core Hits 12 | . 6 6 Critical Kills 4 | . 1 3 Critical Parts Destroyed 2 | . . 2 Critical Strikes 6 | . 1 5 Smash 6 | . 1 5 Melee Attacks 74 | . 32 42 Impact 63 | . 21 42 Slashing 11 | . 11 . Piercing . | . . . Sneak Attacks 1 | . 1 . Combat Hostiles . | . . . Follow-up Attacks . | . . . Damage Inflicted 1386 | . 597 789 Guns . | . . . Cannons . | . . . Explosions 114 | . 114 . Melee 1272 | . 483 789 Ramming . | . . . Kinetic . | . . . Thermal 114 | . 114 . Explosive . | . . . Electromagnetic . | . . . Impact 1087 | . 298 789 Slashing 185 | . 185 . Piercing . | . . . Highest Corruption . | . . . Average Corruption . | . . . Corruption Purged . | . . . Corruption Blocked . | . . . Overload Shots . | . . . Overflow Damage 228 | . 87 141 Projectiles . | . . . Explosions 76 | . 76 . Melee 152 | . 11 141 Knockbacks 2 | . 1 1 Impact 2 | . 1 1 Kinetic . | . . . Secondary . | . . . Self-Inflicted Damage 98 | . 98 . Shots 1 | . 1 . Rammed . | . . . Targets Rammed . | . . . Kicked . | . . . Crushed . | . . . Highest Temperature . | . . . Average Temperature . | . . . Received Heat Transfer 153 | . 36 117 Siege Activations . | . . . Robots Corrupted . | . . . Combat Hostiles . | . . . Parts Fried . | . . . Impact Corruptions 7 | . . 7 Robots Melted . | . . . Combat Hostiles . | . . . Parts Melted . | . . . Heat Transferred 100 | . 100 . Parts Sabotaged . | . . . Parts Stolen . | . . . Parts Stripped . | . . . Power Chain Reactions . | . . . Alert | -11 -10 -9 ------- Run | Yrd Mat Mat Peak Influence 423 | . 255 423 Initial 107 | . . 107 Average 174 | . 121 233 Maximum Alert Level 2 | . 1 2 Low Security (%) 54 | 100 81 27 Level 1 43 | . 18 70 Level 2 1 | . . 2 Level 3 . | . . . Level 4 . | . . . Level 5 . | . . . High Security . | . . . Max Security . | . . . Squads Dispatched 1 | . . 1 Investigation . | . . . Extermination . | . . . Reinforcement 1 | . . 1 Assault . | . . . Garrison . | . . . Intercept . | . . . Searches Triggered . | . . . Construction Impeded . | . . . Haulers Reinforced . | . . . Active Scanning Responses . | . . . Cargo Convoy Interrupts . | . . . Stealth | -11 -10 -9 --------- Run | Yrd Mat Mat Distress Signals 3 | . . 3 Communications Jammed . | . . . Distress Signals . | . . . Times Spotted 23 | . 9 14 Peak Tracking Total 8 | . 3 8 Tactical Retreats . | . . . Traps | -11 -10 -9 ------- Run | Yrd Mat Mat Traps Triggered . | . . . Indirectly . | . . . Trap Hack Attempts . | . . . Triggered . | . . . Disarmed . | . . . Reprogrammed . | . . . Reused . | . . . Traps Extracted . | . . . Installed . | . . . Triggered . | . . . Machines | -11 -10 -9 ---------- Run | Yrd Mat Mat Machines Disabled 2 | . 2 . Max in Single Turn 2 | . 2 . Machines Repaired . | . . . Machines Dismantled . | . . . Machines Sabotaged . | . . . Overloaded Fab Kills . | . . . Hacking | -11 -10 -9 --------- Run | Yrd Mat Mat Machines Accessed 13 | . 8 5 Terminals 13 | . 8 5 Fabricators . | . . . Repair Stations . | . . . Recycling Units . | . . . Scanalyzers . | . . . Garrison Access . | . . . Total Hacks 47 | . 29 18 Successful 31 | . 20 11 Failed 15 | . 8 7 Catastrophic . | . . . Database Lockouts 1 | . 1 . Manual 32 | . 19 13 Terminals 47 | . 29 18 Fabricators . | . . . Repair Stations . | . . . Recycling Units . | . . . Scanalyzers . | . . . Garrison Access . | . . . Terminal Hacks 15 | . 10 5 Robot Analysis 1 | . 1 . Prototype ID Bank 3 | . 3 . Level Access Points 1 | . 1 . Branch Access Points 1 | . . 1 Terminal Index 2 | . 1 1 Alert Level 1 | . 1 . Hauler Manifests 2 | . 2 . Registered Components 2 | . 1 1 Zone Layout 2 | . . 2 Fabricator Hacks . | . . . Repair Station Hacks . | . . . Recycling Unit Hacks . | . . . Scanalyzer . | . . . Garrison Access Hacks . | . . . Unauthorized Hacks 16 | . 10 6 Terminals 16 | . 10 6 Track 3 | . 3 . Botnet 8 | . 5 3 Disrupt 3 | . 2 1 Operators 2 | . . 2 Fabricators . | . . . Repair Stations . | . . . Recycling Units . | . . . Scanalyzers . | . . . Garrison Access . | . . . Data Cores Recovered . | . . . Used . | . . . Hacking Detections 12 | . 7 5 Full Trace Events . | . . . Feedback Events . | . . . Feedback Blocked . | . . . Robot Schematics Acquired . | . . . Robots Built . | . . . Authchips . | . . . Time . | . . . Total Robot Build Rating . | . . . Part Schematics Acquired . | . . . Parts Built . | . . . Authchips . | . . . Time . | . . . Total Part Build Rating . | . . . Parts Repaired . | . . . Time . | . . . Parts Recycled . | . . . Recycled Matter . | . . . Retrieved Matter . | . . . Retrieved Components . | . . . Parts Scanalyzed . | . . . Part Schematics Acquired . | . . . Parts Damaged . | . . . Bothacking | -11 -10 -9 ------------ Run | Yrd Mat Mat Used RIF Installer . | . . . Robots Hacked . | . . . Non-combat . | . . . Combat . | . . . Robot Hacks Applied . | . . . Relay Couplers Released . | . . . Fabnet Peak Effective % . | . . . Robots Rewired . | . . . Allies Hacked . | . . . Hacks Repelled . | . . . Allies | -11 -10 -9 -------- Run | Yrd Mat Mat Total Allies . | . . . Largest Group . | . . . Highest-Rated Group . | . . . Highest-Rated Ally . | . . . Total Orders . | . . . Ally Attacks . | . . . Total Damage . | . . . Kills . | . . . Allies Corrupted . | . . . Allies Melted . | . . . Intel | -11 -10 -9 ------- Run | Yrd Mat Mat Robot Analysis Total 1 | . 1 . Derelict Logs Recovered . | . . . Drone Launches . | . . . Drone Recoveries . | . . . Exploration | -11 -10 -9 ------------- Run | Yrd Mat Mat Turns Passed 789 | 15 386 388 Spaces Moved 1099 | 30 666 403 Core 77 | 30 47 . Treads . | . . . Legs . | . . . Wheels . | . . . Hover 274 | . . 274 Flight 748 | . 619 129 Fastest Speed 40 | 50 40 40 Average Speed 46 | 50 40 55 Slowest Speed 120 | 50 50 120 Overloaded Moves . | . . . Propulsion Burnouts . | . . . Robots Hopped 6 | . 4 2 Cave-ins Triggered . | . . . Exploration Rate (%) 39 | 3 83 32 Regions Visited 2 Branch Regions . Pre-discovered Areas . | . . . Known Exits Taken 1 | . 1 . Unknown Exits Taken 1 | 1 . . Scrap Searched . | . . . Spaces Dug 5 | . 5 . Terrain Destroyed 33 | . 33 . Melee 5 | . 5 . Projectile . | . . . AOE 28 | . 28 . Terrain Rammed . | . . . Walls Destroyed . | . . . Machines Disabled . | . . . Actions | -11 -10 -9 --------- Run | Yrd Mat Mat Total 1252 | 29 721 502 Wait 60 | . 13 47 Move 1087 | 29 659 399 Hop 4 | . 2 2 Pick Up . | . . . Fast Attach 8 | . 4 4 Attach . | . . . Detach . | . . . Swap . | . . . Drop 3 | . 1 2 Fire . | . . . Melee 74 | . 32 42 Ram . | . . . Kick . | . . . Crush . | . . . Escape Stasis . | . . . Rewire . | . . . Trap . | . . . Miscellaneous 16 | . 10 6 Route ------- -11/Scrapyard -10/Materials (discovered 4 exits: *Mat x3 / [*Min]) -9/Materials (discovered 2 exits: *Min x2) History --------- Turn | Location | Event 5 | -11/Scrapyard | Discovered new exit (range 14) 16 | -11/Scrapyard | Entered Materials 108 | -10/Materials | Discovered new exit (range 8) 121 | -10/Materials | Identified exit to Materials 309 | -10/Materials | Central database locked down 336 | -10/Materials | Build established: Hacker-Mutant 402 | -10/Materials | Entered another Materials area 404 | -9/Materials | Reached level 2 404 | -9/Materials | Upgraded with Propulsion slot (x1) 404 | -9/Materials | Upgraded with Weapon slot (x1) 476 | -9/Materials | Discovered new exit (range 6) 720 | -9/Materials | Identified exit to Mines 739 | -9/Materials | Core integrity fell below 50% 747 | -9/Materials | Reached level 3 776 | -9/Materials | Core integrity fell below 20% 790 | -9/Materials | Destroyed by G-34 Mercenary with Small Laser Last Messages --------------- 00764_ G-34 Mercenary suffers critical hit (Smash). 00764_ G-34 Mercenary destroyed. 00766_ K-01 Serf collects debris. 00772_ Destroyed Aluminum Leg. 00772_ G-34 Mercenary system corrupted by crushing effect. 00772_ K-01 Serf collects debris. 00777_ G-34 Mercenary destroyed. 00778_ K-01 Serf collects debris. 00780_ Destroyed Flight Unit. 00780_ S-10 Pest system corrupted by crushing effect. 00780_ S-10 Pest destroyed. 00782_ K-01 Serf collects debris. 00782_ Destroyed Flight Unit. 00782_ S-10 Pest system corrupted by crushing effect. 00784_ K-01 Serf collects debris. 00786_ S-10 Pest IFF system glitched. Map ----- +----------------------------------------------------+ | ?????????????????????????????????????????????????? | | ?????????????????????????????????????????????????? | | ?????????????????????????????????????????????????? | | ?????????????????????????????????????????????????? | | ?????????????????????????????????????????????????? | | ?????????????????????????????????????????????????? | | ?????????????????????????????????????????????????? | | ?????????????????????????????????????????????????? | | ?????????????????????????????????????????????????? | | ??????????????????? ?????????????????????????????? | | ????????????????????????? ???? ??????????????????? | | ??????????????????? ? ?? ??????????????????????? | | ??????????????????#? ?##??? ? ""????? ??????? | | ??????????????????#??#?##?#? "?"???? ??????? | | ????????????????#?#??####?? ??"?? ??? ??????? | | ???????????????#?####??#??# ?? ?? ??????? | | ??????????o?????##?##?#?### ? ??? ??? | | ????????????? ####?##?#??## "?" """ #??????? | | ????????????? ?############ """ """ #????? ? | | ???????????? ?### # """ """ ##?????? | | ???????????? ?# ! T # #??????? | | ????????????? ###==! %# #??????? | | ????????????#####==! !%# """ """ #??????? | | ????????????#####==! """g# """ """ #??????? | | ??????????????### ""s%# """ """ #???#??? | | ???????????#???## """@# #??????? | | ????????????#?#?# * =*ks%# #?#??#?? | | ????????????##########+#### !! #????##? | | ????????# ? !! #####?## | | ????????+ ! ##??# | | ????????# #?#?? | | ????????? ######## #???# | | ?????????????#?##### ########### ##### | | ????????????????? ## # ## # | | ???????????????? ? ## "" # """ ## # | | ???????????????? ?## "" + """ ## # | | ?????????????????? ?# "T # ! """ ## # | | ???????????????#???## "" # + + | | ????????????????????# "" # """ ## # | | ????????????????????# # """ #### # | | ????????????????????+ # = """ ##?# # | | ????????????????????# # ##?# # | | ????????????????????# #?########### ##### | | ????????????????????? #?###???????# ##### | | ??????????????????????? #?????#??#?## ##??? | | ?????????????????????????"""" ???????#????# #???? | | ????????????????????????????????#?#??#???#?# ##?#? | | ????????????????????????????????##??#?###??# #??#? | | ??????????????????????????????????????????## #?##? | | ???????????????>??????????????????#???#????# #?##? | +----------------------------------------------------+ Best States ------------- Heat Dissipation 25 Energy Generation 10 Energy Capacity 125 Matter Stores 300 Matter Capacity 300 Sight Range 16 Robot Scan Range 6 Terrain Scan Range 14 Terrain Scan Density 110 Evasion (%) 62 Offensive Hacking 20 Defensive Hacking 10 Item Schematics ----------------- None Robot Schematics ------------------ None Fabricated ------------ Nothing Alien Tech Used ----------------- None Achievements -------------- Batter Up Challenges ------------ None RPGLIKE | -11 -10 -9 --------- Run | Yrd Mat Mat Levels Raised 2 | . . 2 XP Earned 6566 | 3000 825 2741 XP Spent 5975 | . 2975 3000 Upgrades 17 | . 10 7 Propulsion Slot 1 | . . 1 Weapon Slot 1 | . . 1 Sensor Range 3 | . 3 . Terrain Scan Density 1 | . 1 . Melee Accuracy 5 | . . 5 Hack Attack % 4 | . 4 . Hack Defense % 2 | . 2 . Protomatter Created 194 | . 66 128 Integrity Restored 323 | . 198 125 Core 302 | . 198 104 Parts 21 | . . 21 Protomatter Decayed 53 | . . 53 Game ------ Seed CorruptionShrapnelLeg Manual? 0 Play Time 00:17:20 Cumulative 157.1 hours Start 2024.08.05 @ 02:37:37 End 2024.08.05 @ 02:49:48 Sessions 1 Manual Loads 0 Difficulty Rogue Special Mode Winter2019/RPGLIKE Game No. 159 Rogue 159 Adventurer 0 Explorer 0 Win Type - Total 13 Types 11/0/0/1/0/0/1/0/0 Lore% 64 Gallery% 65 Achievement% 68 Wizard Run 0 Options --------- Layout 1 ASCII 0 Keyboard 0 Movement Numpad Keybinds 0 Fullscreen 1 Font 24/Smallcaps Map View 50x35 Zoom Use 0% Tactical HUD 1 Map Filters NONE Filters NONE Steam 1 RUN: 2977fec8-2858-49fb-9c50-55d37eaad997